bitfinex/quotes_BTCUSD_20241229
["timestamp","ask_amount","ask_price","bid_price","bid_amount"]
[1735481640956,0.0001708,95141.0,95140.0,0.35301187]
[1735481642581,0.01665193,95141.0,95140.0,0.35301187]
[1735481643839,0.0001708,95141.0,95140.0,0.35301187]
[1735481646398,0.12545779,95141.0,95140.0,0.35301187]
[1735481647409,0.12545779,95141.0,95140.0,0.34901187]
[1735481647604,0.12945779,95141.0,95140.0,0.34901187]
[1735481647801,0.12945779,95141.0,95140.0,0.09558791]
[1735481648162,0.12545779,95141.0,95140.0,0.09558791]
[1735481648593,0.12645779,95141.0,95140.0,0.09558791]
[1735481649027,0.12645779,95141.0,95140.0,0.0010854]
[1735481651104,0.01843932,95141.0,95140.0,0.0010854]
[1735481651313,0.01765233,95141.0,95140.0,0.0010854]
[1735481651517,0.01765233,95141.0,95140.0,0.09558791]
[1735481652918,0.0011708,95141.0,95140.0,0.09558791]
[1735481653264,0.0011708,95141.0,95140.0,0.27697423]
[1735481654470,0.0011708,95141.0,95140.0,0.30878545]
[1735481654674,0.0001708,95141.0,95140.0,0.30878545]
[1735481654884,0.0001708,95141.0,95140.0,0.53121344]
[1735481655099,0.0011708,95141.0,95140.0,0.53021344]
[1735481655503,0.0001708,95141.0,95140.0,0.53221344]
[1735481656177,0.0011708,95141.0,95140.0,0.53221344]
[1735481656336,0.0001708,95141.0,95140.0,0.53221344]
[1735481657118,0.0001708,95141.0,95140.0,0.53021344]
[1735481657348,0.0001708,95141.0,95140.0,0.53321344]
[1735481657797,0.01665077,95141.0,95140.0,0.53321344]
[1735481663867,0.0001708,95141.0,95140.0,0.53321344]
[1735481664026,0.0001708,95141.0,95140.0,0.53021344]
[1735481664550,0.0001708,95141.0,95140.0,0.53321344]
[1735481665133,0.0001708,95141.0,95140.0,0.34882712]
[1735481665568,0.0001708,95141.0,95140.0,0.35382712]
[1735481666409,0.00095779,95141.0,95140.0,0.35382712]
[1735481666990,0.0001708,95141.0,95140.0,0.35382712]
[1735481667197,0.0001708,95141.0,95140.0,0.0050854]
[1735481667391,0.00095779,95141.0,95140.0,0.0050854]
[1735481668075,0.00095779,95141.0,95140.0,0.28866181]
[1735481668471,0.09433835,95141.0,95140.0,0.28866181]
[1735481668672,0.14113593,95141.0,95140.0,0.28866181]
[1735481668894,0.14113593,95141.0,95140.0,0.0050854]
[1735481669822,0.14113593,95141.0,95140.0,0.19421393]
[1735481671106,0.14113593,95141.0,95140.0,0.14694253]
[1735481672080,0.14113593,95141.0,95140.0,0.0050854]
[1735481672282,0.09433835,95141.0,95140.0,0.0050854]
[1735481673849,0.07785779,95141.0,95140.0,0.0050854]
[1735481676309,0.07785779,95141.0,95138.0,0.14185713]
[1735481676310,0.210216,95140.0,95138.0,0.13320563]
[1735481676522,0.00078699,95139.0,95138.0,0.13320563]
[1735481677150,0.00078699,95139.0,95133.0,0.23649607]
[1735481677151,0.00078699,95139.0,95137.0,0.09453125]
[1735481677443,0.21022,95138.0,95137.0,0.09453125]
[1735481678302,0.21022,95138.0,95133.0,8.54e-05]
[1735481678303,0.210225,95136.0,95135.0,0.09453125]
[1735481679053,0.5761945,95136.0,95135.0,0.09453125]
[1735481679428,0.1764,95135.0,95134.0,0.09453125]
[1735481679622,0.28117331,95135.0,95134.0,0.09453125]
[1735481679837,0.28038632,95135.0,95134.0,0.09453125]
[1735481680032,0.38437264,95135.0,95134.0,0.09453125]
[1735481680834,0.310229,95134.0,95133.0,8.54e-05]
[1735481681036,0.41421532,95134.0,95133.0,8.54e-05]
[1735481682385,0.41421532,95134.0,95116.0,0.09453125]
[1735481682386,0.1,95117.0,95116.0,0.05571366]
[1735481682600,0.32678632,95117.0,95116.0,0.05586644]
[1735481682806,0.32678632,95117.0,95116.0,0.00015278]
[1735481683143,0.34327265,95117.0,95116.0,0.00015278]
[1735481683586,0.55353965,95117.0,95116.0,0.00015278]
[1735481684755,0.55353965,95117.0,95116.0,0.00115278]
[1735481684756,0.56053965,95117.0,95116.0,0.00115278]
[1735481684950,0.55853965,95117.0,95116.0,0.00015278]
[1735481685159,0.55853965,95117.0,95116.0,0.00023818]
[1735481685383,0.56553965,95117.0,95116.0,0.00123818]
[1735481685589,0.66952597,95117.0,95116.0,0.00123818]
[1735481685792,0.56992861,95117.0,95116.0,0.00123818]
[1735481689048,0.58641584,95117.0,95116.0,0.00123818]
[1735481690304,0.56992861,95117.0,95116.0,0.00123818]
[1735481690510,0.58641584,95117.0,95116.0,0.00123818]
[1735481693788,0.56992861,95117.0,95116.0,0.00123818]
[1735481694634,0.65735601,95117.0,95116.0,0.00123818]
[1735481696612,0.56992861,95117.0,95116.0,0.00123818]
[1735481697030,0.58641584,95117.0,95116.0,0.00123818]
[1735481697744,0.25962952,95117.0,95116.0,0.00123818]
[1735481698170,0.24314229,95117.0,95116.0,0.00123818]
[1735481698818,0.23114229,95117.0,95116.0,0.00023818]
[1735481698993,0.01217537,95117.0,95116.0,0.00023818]
[1735481699202,0.01596236,95117.0,95116.0,0.00023818]
[1735481700027,0.22622936,95117.0,95116.0,0.00023818]
[1735481700254,0.22544237,95117.0,95116.0,0.00023818]
[1735481703508,0.28961497,95117.0,95116.0,0.00023818]
[1735481704062,0.42942869,95117.0,95116.0,0.00023818]
[1735481705860,0.50792869,95117.0,95116.0,0.00023818]
[1735481707575,0.5244159,95117.0,95116.0,0.00023818]
[1735481708633,0.50792869,95117.0,95116.0,0.00023818]
[1735481710132,0.50809949,95117.0,95116.0,0.00023818]
[1735481710338,0.60553772,95117.0,95116.0,0.00023818]
[1735481711595,0.62202519,95117.0,95116.0,0.00023818]
[1735481714310,0.52458696,95117.0,95116.0,0.00023818]
[1735481719714,0.52458696,95117.0,95116.0,1.8e-07]
[1735481720649,0.52158696,95117.0,95116.0,1.8e-07]
[1735481720877,0.51958696,95117.0,95116.0,1.8e-07]
[1735481721305,0.52558696,95117.0,95116.0,0.00100018]
[1735481721560,0.52558696,95117.0,95098.0,8.55e-05]
[1735481721561,0.410278,95112.0,95111.0,1e-06]
[1735481721785,0.410278,95112.0,95111.0,0.00010804]
[1735481721786,0.41426432,95112.0,95111.0,0.00010804]
[1735481722028,0.51426432,95112.0,95111.0,0.00010804]
[1735481722261,0.51426432,95112.0,95111.0,4e-08]
[1735481722499,0.61825064,95112.0,95111.0,4e-08]
[1735481722960,0.51825064,95112.0,95111.0,4e-08]
[1735481723232,0.61825064,95112.0,95111.0,4e-08]
[1735481723639,0.51825064,95112.0,95111.0,4e-08]
[1735481723757,0.61825064,95112.0,95111.0,4e-08]
[1735481723977,0.64465064,95112.0,95111.0,4e-08]
[1735481724200,0.410291,95106.0,95105.0,5.4e-07]
[1735481724450,0.68567238,95106.0,95105.0,4.5e-07]
[1735481725118,0.68567238,95106.0,95096.0,8.54e-05]
[1735481725119,0.2,95097.0,95096.0,3.5e-07]
[1735481725341,0.30477331,95097.0,95096.0,2.4e-07]
[1735481725553,0.30398632,95097.0,95096.0,2.4e-07]
[1735481725757,0.37644595,95097.0,95096.0,2.4e-07]
[1735481726864,0.42194595,95097.0,95096.0,2.4e-07]
[1735481727219,0.49784595,95097.0,95096.0,2.4e-07]
[1735481727561,0.50284595,95097.0,95096.0,2.4e-07]
[1735481727760,0.51184595,95097.0,95096.0,2.4e-07]
[1735481727971,0.50284595,95097.0,95096.0,2.4e-07]
[1735481728330,0.51084595,95097.0,95096.0,2.4e-07]
[1735481728655,0.51084595,95097.0,95087.0,6.4e-07]
[1735481728656,0.486231,95088.0,95087.0,6.4e-07]
[1735481728817,0.65987312,95088.0,95087.0,5.144e-05]
[1735481729843,0.65987312,95088.0,95087.0,4.4e-07]
[1735481730473,0.66587312,95088.0,95087.0,4.4e-07]
[1735481731290,0.69026188,95088.0,95087.0,4.4e-07]
[1735481731513,0.72676188,95088.0,95087.0,4.4e-07]
[1735481732323,0.73576188,95088.0,95087.0,4.4e-07]
[1735481732724,0.74176188,95088.0,95087.0,4.4e-07]
[1735481733148,0.73576188,95088.0,95087.0,4.4e-07]
[1735481733538,0.73376188,95088.0,95087.0,4.4e-07]
[1735481733940,0.531766,95072.0,95071.0,4.4e-07]
[1735481734154,0.73100062,95072.0,95071.0,4.4e-07]
[1735481735325,0.1,95069.0,95068.0,4e-08]
[1735481735531,0.41514631,95069.0,95068.0,4e-08]
[1735481735749,0.41435932,95069.0,95068.0,4e-08]
[1735481735938,0.61834564,95069.0,95068.0,4e-08]
[1735481736979,0.6348427,95069.0,95068.0,4e-08]
[1735481737197,0.61834564,95069.0,95068.0,4e-08]
[1735481737430,0.62534564,95069.0,95068.0,4e-08]
[1735481737838,0.63434564,95069.0,95068.0,4e-08]
[1735481738239,0.65512241,95069.0,95068.0,4e-08]
[1735481738469,0.73192241,95069.0,95068.0,4e-08]
[1735481739669,0.487197,95058.0,95057.0,4e-08]
[1735481739866,0.59118332,95058.0,95057.0,4e-08]
[1735481740267,0.2,95056.0,95055.0,4.4e-07]
[1735481740469,0.30477331,95056.0,95055.0,4.4e-07]
[1735481740788,0.30398632,95056.0,95055.0,4.4e-07]
[1735481740948,0.40518375,95056.0,95055.0,0.0001449]
[1735481741174,0.42168248,95056.0,95055.0,0.0001449]
[1735481741803,0.22948505,95056.0,95055.0,0.0001449]
[1735481742005,0.32948505,95056.0,95055.0,0.0001449]
[1735481743244,0.33548505,95056.0,95055.0,0.0001449]
[1735481744780,0.31898632,95056.0,95055.0,0.0001449]
[1735481745613,0.39578632,95056.0,95055.0,0.0001449]
[1735481745814,0.49848375,95056.0,95055.0,9e-07]
[1735481746774,0.49248375,95056.0,95055.0,9e-07]
[1735481747077,0.48348375,95056.0,95055.0,9e-07]
[1735481747281,0.49048375,95056.0,95055.0,9e-07]
[1735481747485,0.49948375,95056.0,95055.0,9e-07]
[1735481747714,0.48348375,95056.0,95055.0,9e-07]
[1735481748133,0.50898308,95056.0,95055.0,9e-07]
[1735481748354,0.310426,95045.0,95044.0,4e-07]
[1735481748584,0.410437,95040.0,95039.0,9e-07]
[1735481748788,0.51442332,95040.0,95039.0,9e-07]
[1735481749386,0.53092376,95040.0,95039.0,9e-07]
[1735481749595,0.53092376,95040.0,95004.0,0.09468718]
[1735481749596,0.1,95001.0,94998.0,0.09410332]
[1735481749818,0.1,94997.0,94996.0,0.12980067]
[1735481750016,0.10477331,94997.0,94996.0,0.12980067]
[1735481750719,0.10477331,94997.0,94991.0,0.0002854]
[1735481750720,0.42107,94996.0,94991.0,0.0002854]
[1735481750924,0.210539,94994.0,94991.0,0.0002854]
[1735481751132,0.00078699,94993.0,94991.0,0.0002854]
[1735481751747,0.26713852,94992.0,94991.0,0.0002854]
[1735481751968,0.210544,94992.0,94991.0,0.0002854]
[1735481752341,0.31453032,94992.0,94991.0,0.0002854]
[1735481753112,0.210544,94992.0,94991.0,0.0002854]
[1735481753852,0.215544,94992.0,94991.0,0.0002854]
[1735481754278,0.210544,94992.0,94991.0,0.0002854]
[1735481754532,0.22456154,94992.0,94991.0,0.0002854]
[1735481754708,0.210544,94992.0,94991.0,0.0002854]
[1735481755893,0.211544,94992.0,94991.0,0.0002854]
[1735481756156,0.31553032,94992.0,94991.0,0.0002854]
[1735481758318,0.211544,94992.0,94991.0,0.0002854]
[1735481758717,0.001,94992.0,94991.0,0.0002854]
[1735481758918,0.001,94992.0,94991.0,0.1269854]
[1735481759911,0.00015225,94994.0,94992.0,0.0787]
[1735481760608,0.02122017,94994.0,94992.0,0.0787]
[1735481760820,0.210541,94993.0,94992.0,0.0787]
[1735481761016,0.00015225,94994.0,94992.0,0.0787]
[1735481761648,0.00115225,94994.0,94992.0,0.0797]
[1735481762056,0.00015225,94994.0,94992.0,0.0787]
[1735481762497,0.00115225,94994.0,94992.0,0.0797]
[1735481762706,0.210541,94993.0,94992.0,0.0797]
[1735481762861,0.210541,94993.0,94992.0,0.001]
[1735481763373,0.210555,94987.0,94986.0,0.0749854]
[1735481765311,0.210555,94987.0,94986.0,0.0759854]
[1735481765535,0.210555,94987.0,94986.0,0.0749854]
[1735481767274,0.00015225,94994.0,94986.0,0.0749854]
[1735481767494,0.00015225,94994.0,94988.0,0.0764]
[1735481767881,0.21069325,94994.0,94988.0,0.0764]
[1735481768261,0.00015225,94994.0,94988.0,0.0764]
[1735481769275,0.00015225,94994.0,94989.0,0.10503884]
[1735481769527,0.00015225,94994.0,94990.0,0.0764]
[1735481769656,0.00015225,94994.0,94991.0,0.15483833]
[1735481769870,0.00015225,94994.0,94992.0,0.0764]
[1735481770072,0.00015225,94994.0,94993.0,0.18143887]
[1735481770887,0.00115225,94994.0,94993.0,0.18143887]
[1735481771282,0.00215225,94994.0,94993.0,0.18143887]
[1735481771485,0.00015225,94994.0,94993.0,0.18143887]
[1735481772086,0.00115225,94994.0,94993.0,0.18243887]
[1735481772301,0.00115225,94994.0,94993.0,0.21521386]
[1735481772505,0.00115225,94994.0,94993.0,0.21416131]
[1735481772713,0.00115225,94994.0,94993.0,0.35487099]
[1735481772926,0.00115225,94994.0,94993.0,0.27847099]
[1735481773130,0.00115225,94994.0,94993.0,0.21810968]
[1735481773853,0.00115225,94994.0,94993.0,0.21805368]
[1735481774067,0.00115225,94994.0,94993.0,0.077344]
[1735481774874,0.00015225,94994.0,94993.0,0.0764]
[1735481775107,0.00115225,94994.0,94986.0,0.09427156]
[1735481775671,0.210544,94992.0,94986.0,0.09427156]
[1735481775981,0.210553,94988.0,94986.0,8.55e-05]
[1735481776745,0.22706001,94988.0,94986.0,0.09437773]
[1735481777417,0.210553,94988.0,94986.0,0.09437773]
[1735481777955,0.25277793,94988.0,94986.0,8.55e-05]
[1735481778893,0.00078699,94987.0,94986.0,8.55e-05]
[1735481779094,0.00078699,94987.0,94986.0,0.0020855]
[1735481779247,0.210553,94988.0,94986.0,0.0020855]
[1735481779448,0.210553,94988.0,94986.0,8.55e-05]
[1735481779654,0.00078699,94987.0,94986.0,0.0040855]
[1735481779852,0.04299061,94987.0,94986.0,0.0040855]
[1735481780051,0.04299061,94987.0,94986.0,8.55e-05]
[1735481780575,0.05949847,94987.0,94986.0,8.55e-05]
[1735481780911,0.01729485,94987.0,94986.0,8.55e-05]
[1735481781645,0.01929485,94987.0,94986.0,0.0050855]
[1735481781822,0.01829485,94987.0,94986.0,8.55e-05]
[1735481782062,0.01729485,94987.0,94986.0,8.55e-05]
[1735481783792,0.00278699,94987.0,94986.0,8.55e-05]
[1735481784042,0.04726212,94987.0,94986.0,8.55e-05]
[1735481784668,0.00278699,94987.0,94986.0,8.55e-05]
[1735481784845,0.00078699,94987.0,94986.0,8.55e-05]
[1735481785252,0.10677331,94987.0,94986.0,8.55e-05]
[1735481785483,0.10777331,94987.0,94986.0,8.55e-05]
[1735481786317,0.10677331,94987.0,94986.0,8.55e-05]
[1735481786518,0.11277331,94987.0,94986.0,0.0010855]
[1735481787341,0.11077331,94987.0,94986.0,0.0010855]
[1735481787769,0.11577331,94987.0,94986.0,0.0010855]
[1735481787981,0.10977331,94987.0,94986.0,8.55e-05]
[1735481788492,0.10877331,94987.0,94986.0,8.55e-05]
[1735481788901,0.11377331,94987.0,94986.0,8.55e-05]
[1735481789114,0.27936417,94987.0,94986.0,8.55e-05]
[1735481789337,0.27857718,94987.0,94986.0,8.55e-05]
[1735481789949,0.27857718,94987.0,94974.0,0.0141806]
[1735481789950,0.210581,94975.0,94974.0,0.0141806]
[1735481790162,0.31456732,94975.0,94974.0,0.0141806]
[1735481790582,0.310597,94968.0,94967.0,0.04996525]
[1735481790791,0.49960025,94968.0,94967.0,0.04996525]
[1735481790996,0.50027985,94968.0,94967.0,0.04996525]
[1735481791208,0.49960025,94968.0,94967.0,0.01390525]
[1735481791412,0.49960025,94968.0,94935.0,0.0813]
[1735481791413,0.1,94963.0,94960.0,4.253e-05]
[1735481791611,0.31538331,94962.0,94960.0,4.253e-05]
[1735481791846,0.31459632,94962.0,94960.0,4.253e-05]
[1735481792020,0.00078699,94961.0,94960.0,4.253e-05]
[1735481792291,0.10477331,94961.0,94960.0,4.253e-05]
[1735481792683,0.10492548,94961.0,94960.0,4.253e-05]
[1735481794285,0.20492548,94961.0,94960.0,4.253e-05]
[1735481794494,0.37895407,94961.0,94960.0,4.253e-05]
[1735481794699,0.38216708,94961.0,94960.0,4.253e-05]
[1735481794911,0.37816708,94961.0,94960.0,4.253e-05]
[1735481795651,0.20996243,94935.0,94930.0,0.14070968]
[1735481796367,0.20996243,94935.0,94928.0,0.22207968]
[1735481796844,0.21196243,94935.0,94928.0,0.22207968]
[1735481797066,0.22847854,94935.0,94928.0,0.14077968]
[1735481797598,0.22777097,94935.0,94928.0,7e-05]
[1735481798541,0.33175729,94935.0,94928.0,7e-05]
[1735481799494,0.40917964,94935.0,94928.0,7e-05]
[1735481799713,0.33175729,94935.0,94928.0,7e-05]
[1735481800705,0.32975729,94935.0,94928.0,7e-05]
[1735481801384,0.33275729,94935.0,94928.0,7e-05]
[1735481801652,0.31624118,94935.0,94928.0,7e-05]
[1735481801878,0.37777292,94935.0,94928.0,7e-05]
[1735481802091,0.39229017,94935.0,94928.0,7e-05]
[1735481802343,0.37577292,94935.0,94928.0,7e-05]
[1735481802585,0.38477292,94935.0,94928.0,7e-05]
[1735481802828,0.39931949,94935.0,94928.0,7e-05]
[1735481803290,0.51031949,94935.0,94928.0,7e-05]
[1735481803779,0.50331949,94935.0,94928.0,7e-05]
[1735481804259,0.50931949,94935.0,94928.0,7e-05]
[1735481804724,0.31924118,94935.0,94928.0,7e-05]
[1735481804937,0.32724118,94935.0,94928.0,7e-05]
[1735481805150,0.014,94935.0,94928.0,7e-05]
[1735481805619,0.22467,94935.0,94928.0,7e-05]
[1735481805831,0.21667,94935.0,94928.0,7e-05]
[1735481806048,0.32965632,94935.0,94928.0,7e-05]
[1735481806273,0.32365632,94935.0,94928.0,7e-05]
[1735481806484,0.32165632,94935.0,94928.0,7e-05]
[1735481807075,0.31465632,94935.0,94928.0,7e-05]
[1735481807969,0.31865632,94935.0,94928.0,7e-05]
[1735481809029,0.31865632,94935.0,94934.0,0.0001905]
[1735481809362,0.32265632,94935.0,94934.0,0.0001905]
[1735481809566,0.33917368,94935.0,94934.0,0.0001905]
[1735481813755,0.33917368,94935.0,94902.0,0.0010536]
[1735481813756,0.1,94901.0,94896.0,0.09443908]
[1735481813956,0.20530376,94901.0,94896.0,0.09443908]
[1735481814312,0.10398632,94901.0,94896.0,0.09443908]
[1735481814562,0.17760615,94901.0,94896.0,0.09443908]
[1735481815149,0.10413835,94901.0,94896.0,0.09443908]
[1735481815390,0.20413835,94901.0,94896.0,0.09443908]
[1735481815776,0.20413835,94901.0,94896.0,8.55e-05]
[1735481816225,0.20613835,94901.0,94896.0,8.55e-05]
[1735481816433,0.310792,94880.0,94865.0,0.07543586]
[1735481816644,0.310792,94880.0,94844.0,0.41943465]
[1735481816645,0.2,94863.0,94862.0,0.14140703]
[1735481816860,0.2,94861.0,94860.0,0.18806748]
[1735481817144,0.2,94861.0,94834.0,0.29341024]
[1735481817145,0.410892,94835.0,94834.0,0.29341024]
[1735481817399,0.51487832,94835.0,94834.0,0.21511024]
[1735481817625,0.311,94816.0,94815.0,0.05213922]
[1735481817835,0.311,94816.0,94801.0,0.51264236]
[1735481817836,0.310957,94806.0,94801.0,0.51264236]
[1735481818046,0.310957,94806.0,94801.0,0.29705796]
[1735481818047,0.1,94802.0,94801.0,0.29705796]
[1735481818287,0.31495232,94802.0,94801.0,0.21226055]
[1735481818491,0.31495232,94802.0,94734.0,0.5394]
[1735481818492,0.310988,94792.0,94747.0,0.0482]
[1735481818697,0.51497432,94792.0,94747.0,0.0482]
[1735481818937,0.1,94789.0,94788.0,0.0252]
[1735481819145,0.00015175,94792.0,94788.0,0.0252]
[1735481819347,1.51739759,94792.0,94789.0,0.0777]
[1735481819562,1.51739759,94792.0,94790.0,0.210992]
[1735481819786,0.98046872,94792.0,94791.0,0.1]
[1735481819993,0.55969949,94866.0,94839.0,0.0777]
[1735481820223,0.1,94856.0,94825.0,0.1]
[1735481820428,0.1,94849.0,94835.0,0.210891]
[1735481820634,0.1,94848.0,94834.0,0.000105]
[1735481820847,0.003,94835.0,94834.0,0.000105]
[1735481821487,0.1,94837.0,94834.0,0.000105]
[1735481821697,0.1,94835.0,94834.0,0.000105]
[1735481821902,0.20398632,94835.0,94834.0,0.000105]
[1735481822129,0.30398632,94835.0,94834.0,0.000105]
[1735481822534,0.1,94822.0,94781.0,0.1]
[1735481822716,0.210923,94821.0,94789.0,0.10398632]
[1735481823015,0.210923,94821.0,94796.0,0.210977]
[1735481823192,0.210923,94821.0,94789.0,0.10398632]
[1735481823431,0.1,94814.0,94790.0,0.210992]
[1735481823644,0.10398632,94813.0,94789.0,0.210994]
[1735481823854,0.1,94822.0,94820.0,0.210925]
[1735481824068,0.1,94843.0,94821.0,0.10398632]
[1735481824284,0.09318059,94831.0,94830.0,0.310903]
[1735481824488,0.09318059,94831.0,94830.0,0.41488932]
[1735481824695,0.10785148,94837.0,94836.0,0.1]
[1735481824908,0.13478538,94843.0,94842.0,0.5]
[1735481825135,0.13478538,94843.0,94842.0,0.60398632]
[1735481825313,0.13493828,94843.0,94842.0,0.60398632]
[1735481825516,0.0001529,94843.0,94842.0,0.60398632]
[1735481826792,0.0011529,94843.0,94842.0,0.60398632]
[1735481827614,0.0021529,94843.0,94842.0,0.60898632]
[1735481829805,0.0021529,94843.0,94842.0,0.10898632]
[1735481830016,0.0021529,94843.0,94842.0,0.20898632]
[1735481830658,0.0011529,94843.0,94842.0,0.20398632]
[1735481831066,0.0021529,94843.0,94842.0,0.20998632]
[1735481831686,0.0021529,94843.0,94842.0,0.20398632]
[1735481831892,0.0011529,94843.0,94842.0,0.2045952]
[1735481832134,0.0021529,94843.0,94842.0,0.2105952]
[1735481832335,0.0021529,94843.0,94842.0,0.20998632]
[1735481833145,0.0011529,94843.0,94842.0,0.20998632]
[1735481833482,0.0013243,94843.0,94842.0,0.20998632]
[1735481833596,0.0013243,94843.0,94842.0,0.20398632]
[1735481833801,0.0003243,94843.0,94842.0,0.20398632]
[1735481834050,0.0013243,94843.0,94842.0,0.20898632]
[1735481834573,0.0023243,94843.0,94842.0,0.20898632]
[1735481835065,0.0023243,94843.0,94842.0,0.41986332]
[1735481836959,0.210773,94889.0,94871.0,0.21081]
[1735481837165,0.1,94880.0,94872.0,0.10504022]
[1735481837588,0.1,94880.0,94860.0,0.210837]
[1735481837723,0.1,94880.0,94861.0,0.10398632]
[1735481837935,0.210805,94875.0,94861.0,0.10398632]
[1735481838409,0.210794,94879.0,94862.0,0.210832]
[1735481838620,0.210794,94879.0,94863.0,0.10504031]
[1735481839484,0.421589,94879.0,94864.0,0.210828]
[1735481839721,0.421589,94879.0,94865.0,0.10504031]
[1735481839914,0.210794,94879.0,94866.0,0.210823]
[1735481840088,0.1,94880.0,94867.0,0.10504029]
[1735481840572,0.210774,94888.0,94867.0,0.10504029]
[1735481840781,0.00015284,94889.0,94869.0,0.1]
[1735481841009,0.00015284,94889.0,94879.0,0.210794]
[1735481841213,0.00015284,94889.0,94880.0,0.10503999]
[1735481841620,0.10015284,94889.0,94880.0,0.10503999]
[1735481842081,0.10015284,94889.0,94871.0,0.210812]
[1735481842287,0.002,94879.0,94872.0,0.10398632]
[1735481842930,0.1,94882.0,94872.0,0.10398632]
[1735481843194,0.00015284,94889.0,94872.0,0.10398632]
[1735481843195,0.00015284,94889.0,94873.0,0.00105389]
[1735481843403,0.10115284,94889.0,94874.0,0.31479132]
[1735481843618,0.1,94884.0,94876.0,0.210801]
[1735481843825,0.1,94884.0,94877.0,0.10398632]
[1735481844246,0.1,94887.0,94877.0,0.10398632]
[1735481844447,0.10115284,94889.0,94877.0,0.10398632]
[1735481845085,0.1,94884.0,94877.0,0.10398632]
[1735481845490,0.00015284,94889.0,94860.0,0.2]
[1735481845491,0.310785,94883.0,94879.0,0.002]
[1735481845830,0.0821,94849.0,94844.0,0.09353848]
[1735481845989,0.292961,94849.0,94844.0,0.09353848]
[1735481846194,0.503823,94849.0,94844.0,0.09353848]
[1735481846716,0.31087,94845.0,94844.0,0.09353848]
[1735481847144,0.31087,94845.0,94811.0,0.1]
[1735481847400,0.31087,94845.0,94819.0,0.1]
[1735481847551,0.31087,94845.0,94829.0,0.210904]
[1735481847705,0.210872,94844.0,94820.0,0.31491132]
[1735481847918,0.210892,94836.0,94822.0,0.210921]
[1735481848116,0.101,94845.0,94844.0,0.007]
[1735481848325,0.210872,94844.0,94833.0,0.210895]
[1735481848533,0.210872,94844.0,94834.0,0.0010543]
[1735481848741,0.210872,94844.0,94829.0,0.210905]
[1735481848742,0.210872,94844.0,94831.0,0.210901]
[1735481848989,0.101,94845.0,94842.0,8.57e-05]
[1735481849226,0.101,94845.0,94844.0,0.004]
[1735481849430,0.001,94845.0,94844.0,0.004]
[1735481849636,0.001,94845.0,94844.0,0.10398632]
[1735481850263,0.001,94845.0,94844.0,0.10504051]
[1735481850469,0.0001714,94847.0,94844.0,0.10398632]
[1735481850672,0.0001714,94847.0,94842.0,0.00059478]
[1735481851461,0.210868,94846.0,94842.0,0.00059478]
[1735481851666,0.0001714,94847.0,94844.0,0.002]
[1735481851879,0.0001714,94847.0,94842.0,0.00059478]
[1735481852491,0.0011714,94847.0,94844.0,0.001]
[1735481852692,0.0011714,94847.0,94844.0,0.10498632]
[1735481852864,0.0011714,94847.0,94845.0,0.10398632]
[1735481853307,0.0001714,94847.0,94846.0,0.21192219]
[1735481853510,0.0001714,94847.0,94846.0,0.31485432]
[1735481853713,0.0011714,94847.0,94846.0,0.31485432]
[1735481855533,0.0001714,94847.0,94846.0,0.31485432]
[1735481855940,0.0011714,94847.0,94846.0,0.31485432]
[1735481856343,0.0011714,94847.0,94846.0,0.10398632]
[1735481856550,0.0021714,94847.0,94846.0,0.10798632]
[1735481857355,0.0001714,94847.0,94846.0,0.10398632]
[1735481858343,0.0001714,94847.0,94846.0,0.1050405]
[1735481858522,0.0001714,94847.0,94846.0,0.13793197]
[1735481858808,0.0011714,94847.0,94846.0,0.14393197]
[1735481859011,0.0001714,94847.0,94846.0,0.13793197]
[1735481859417,0.0011714,94847.0,94846.0,0.14693197]
[1735481859556,0.0011714,94847.0,94846.0,0.14793197]
[1735481860997,0.0011714,94847.0,94846.0,0.14687779]
[1735481861569,0.0011714,94847.0,94846.0,0.14587779]
[1735481863261,0.0011714,94847.0,94846.0,0.14887779]
[1735481864255,0.0011714,94847.0,94846.0,0.24887779]
[1735481865034,0.0011714,94847.0,94846.0,0.25097779]
[1735481865793,0.0011714,94847.0,94846.0,0.52306088]
[1735481865794,0.0001714,94847.0,94846.0,0.52306088]
[1735481866153,0.0011714,94847.0,94846.0,0.53206088]
[1735481866355,0.0011714,94847.0,94846.0,0.52906088]
[1735481866560,4e-07,94847.0,94846.0,0.52006088]
[1735481866763,0.0764,94890.0,94875.0,0.1]
[1735481866975,0.0764,94890.0,94876.0,0.55953358]
[1735481867174,0.1,94887.0,94878.0,0.210797]
[1735481867377,0.210784,94884.0,94878.0,0.10398632]
[1735481868033,0.00032401,94879.0,94878.0,0.10398632]
[1735481869372,0.00032401,94879.0,94878.0,0.10504011]
[1735481869771,0.00032401,94879.0,94878.0,0.11404011]
[1735481870311,0.00032401,94879.0,94878.0,0.12304011]
[1735481872999,0.00032401,94879.0,94878.0,0.12604011]
[1735481873993,0.06576726,94890.0,94879.0,0.632382]
[1735481874182,0.210745,94902.0,94880.0,0.10504008]
[1735481874379,0.210754,94898.0,94886.0,0.210777]
[1735481874580,0.1,94879.0,94878.0,0.02150908]
[1735481874787,0.357494,94879.0,94878.0,0.01850908]
[1735481875290,0.357494,94879.0,94878.0,0.02250908]
[1735481875920,0.3576648,94879.0,94878.0,0.01850908]
[1735481876462,0.3586648,94879.0,94878.0,0.01850908]
[1735481877153,0.4348648,94879.0,94878.0,0.00050908]
[1735481877964,0.4338648,94879.0,94878.0,0.00050908]
[1735481878138,0.3338648,94879.0,94878.0,0.00050908]
[1735481878293,0.4348648,94879.0,94878.0,0.00050908]
[1735481881006,0.4917551,94879.0,94878.0,0.00050908]
[1735481881211,0.387017,94869.0,94868.0,0.09468156]
[1735481881832,0.210832,94862.0,94861.0,0.09468156]
[1735481882242,0.310832,94862.0,94861.0,0.09468156]
[1735481882877,0.310832,94862.0,94854.0,0.09468156]
[1735481882878,0.210845,94857.0,94854.0,0.09468156]
[1735481883558,0.1,94859.0,94854.0,0.09468156]
[1735481883668,0.210841,94858.0,94854.0,0.09468156]
[1735481884281,0.210841,94858.0,94854.0,0.10368156]
[1735481884483,0.210841,94858.0,94854.0,0.09468156]
[1735481884886,0.210841,94858.0,94856.0,0.09468156]
[1735481886113,0.421682,94858.0,94855.0,0.09468156]
[1735481886516,0.210845,94856.0,94855.0,0.09468156]
[1735481886943,0.310845,94856.0,94855.0,0.09468156]
[1735481887151,0.504,94854.0,94851.0,0.09468156]
[1735481887361,0.1,94852.0,94851.0,0.09468156]
[1735481887772,0.504,94854.0,94851.0,0.09468156]
[1735481887773,0.604,94854.0,94851.0,0.09468156]
[1735481887982,0.1,94852.0,94846.0,8.54e-05]
[1735481888124,0.521714,94851.0,94846.0,8.54e-05]
[1735481889769,0.1,94851.0,94846.0,0.10407172]
[1735481890205,0.101,94851.0,94846.0,8.54e-05]